bitfinex-derivatives/quotes_ETHF0:USTF0_20260113
["timestamp","ask_amount","ask_price","bid_price","bid_amount"]
[1768276103261,1.10313065,3116.4,3115.6,1.10069457]
[1768276103662,1.10313065,3116.4,3115.4,1.10069457]
[1768276104358,1.10069457,3116.0,3115.3,0.00887005]
[1768276105470,4.6998148,3116.3,3115.3,0.00887005]
[1768276105769,3.59912446,3116.2,3115.3,0.00887005]
[1768276119573,0.84556736,3116.1,3115.3,0.00887005]
[1768276119876,3.59912446,3116.2,3115.3,0.00887005]
[1768276120072,0.84556952,3116.1,3115.3,0.00887005]
[1768276120374,3.59912446,3116.2,3115.3,0.00887005]
[1768276120576,0.84557708,3116.1,3115.3,0.00887005]
[1768276120774,3.59912446,3116.2,3115.3,0.00887005]
[1768276120974,0.84557723,3116.1,3115.3,0.00887005]
[1768276121176,3.59912446,3116.2,3115.3,0.00887005]
[1768276121371,0.84558455,3116.1,3115.3,0.00887005]
[1768276121578,3.59912446,3116.2,3115.3,0.00887005]
[1768276121880,0.84558455,3116.1,3115.3,0.00887005]
[1768276122081,3.59912446,3116.2,3115.3,0.00887005]
[1768276122385,0.84558455,3116.1,3115.3,0.00887005]
[1768276122568,3.59912446,3116.2,3115.3,0.00887005]
[1768276122763,0.84559195,3116.1,3115.3,0.00887005]
[1768276122965,3.59912446,3116.2,3115.3,0.00887005]
[1768276123179,0.84559195,3116.1,3115.3,0.00887005]
[1768276123379,3.59912446,3116.2,3115.3,0.00887005]
[1768276123680,0.84559946,3116.1,3115.3,0.00887005]
[1768276123872,3.59912446,3116.2,3115.3,0.00887005]
[1768276124072,0.84559946,3116.1,3115.3,0.00887005]
[1768276124275,3.59912446,3116.2,3115.3,0.00887005]
[1768276124474,0.84560647,3116.1,3115.3,0.00887005]
[1768276124677,3.59912446,3116.2,3115.3,0.00887005]
[1768276124873,0.84560647,3116.1,3115.3,0.00887005]
[1768276125072,3.59912446,3116.2,3115.3,0.00887005]
[1768276125282,0.84560647,3116.1,3115.3,0.00887005]
[1768276125484,3.38050392,3116.1,3115.3,0.00887005]
[1768276130091,3.38050392,3116.1,3114.2,3.213]
[1768276130092,1.10069034,3115.8,3114.5,1.10069034]
[1768276130283,3.38050392,3115.7,3114.5,1.10069034]
[1768276131191,3.38050392,3115.7,3114.5,1.10432588]
[1768276131387,3.38050392,3115.7,3114.7,1.10069034]
[1768276134491,3.38050392,3116.3,3115.2,1.10069034]
[1768276134694,0.84620363,3116.2,3115.2,1.10069034]
[1768276134893,0.84620363,3116.1,3115.2,1.10069034]
[1768276135087,3.38050392,3116.3,3115.2,1.10069034]
[1768276135392,0.84614837,3116.2,3115.2,1.10069034]
[1768276135588,3.38050392,3116.3,3115.2,1.10069034]
[1768276135589,0.84614837,3116.1,3115.2,1.10069034]
[1768276135788,3.38050392,3116.3,3115.2,1.10069034]
[1768276135988,0.84618409,3116.2,3115.2,1.10069034]
[1768276136190,0.84618409,3116.1,3115.2,1.10069034]
[1768276136388,3.38050392,3116.3,3115.2,1.10069034]
[1768276136590,0.84622559,3116.2,3115.2,1.10069034]
[1768276136791,0.84622559,3116.1,3115.2,1.10069034]
[1768276136992,3.38050392,3116.3,3115.2,1.10069034]
[1768276137182,0.84622549,3116.2,3115.2,1.10069034]
[1768276137387,0.84622549,3116.1,3115.2,1.10069034]
[1768276137695,3.38050392,3116.3,3115.2,1.10069034]
[1768276137895,0.84628903,3116.2,3115.2,1.10069034]
[1768276138096,0.84628903,3116.1,3115.2,1.10069034]
[1768276138392,3.38050392,3116.3,3115.2,1.10069034]
[1768276138590,0.84633422,3116.2,3115.2,1.10069034]
[1768276138890,3.38050392,3116.3,3115.2,1.10069034]
[1768276139092,0.84631766,3116.2,3115.2,1.10069034]
[1768276139292,3.38050392,3116.3,3115.2,1.10069034]
[1768276139495,0.84636455,3116.2,3115.2,1.10069034]
[1768276139697,0.84638163,3116.1,3115.2,1.10069034]
[1768276139895,3.38050392,3116.3,3115.2,1.10069034]
[1768276140095,0.84639409,3116.2,3115.2,1.10069034]
[1768276140289,3.38050392,3116.3,3115.2,1.10069034]
[1768276140290,0.84639409,3116.1,3115.2,1.10069034]
[1768276140490,3.38050392,3116.3,3115.2,1.10069034]
[1768276140796,0.8463857,3116.2,3115.2,1.10069034]
[1768276140992,0.8463857,3116.1,3115.2,1.10069034]
[1768276141190,3.38050392,3116.3,3115.2,1.10069034]
[1768276141396,3.38050392,3116.1,3114.6,2.87228972]
[1768276141595,3.38050392,3115.9,3114.8,1.10069034]
[1768276151608,3.38050392,3115.9,3114.6,1.10069034]
[1768276152411,3.38050392,3115.9,3114.9,1.10069034]
[1768276166935,1.10312642,3116.4,3114.9,1.10069034]
[1768276167232,4.30003201,3116.3,3114.9,1.10069034]
[1768276167439,4.30003201,3116.2,3115.3,1.10050889]
[1768276167732,0.84638265,3116.1,3115.3,1.10050889]
[1768276168336,4.30003201,3116.1,3115.3,1.10050889]
[1768276168534,0.84638265,3116.0,3115.3,1.10050889]
[1768276168836,4.30003201,3116.0,3115.3,1.10050889]
[1768276169038,3.45364936,3116.0,3115.3,1.10050889]
[1768276169334,3.45364936,3116.0,3115.1,1.10050889]
[1768276172343,3.45364936,3115.8,3114.9,1.10050889]
[1768276172832,3.45364936,3115.8,3114.6,1.10050889]
[1768276172833,4.55415825,3115.7,3114.7,1.10050889]
[1768276173034,3.45364936,3115.6,3114.7,1.10050889]
[1768276173439,3.45364936,3115.6,3114.9,1.10050889]
[1768276179345,3.45846253,3115.6,3114.9,1.10050889]
[1768276182346,3.45846253,3115.6,3115.1,1.10050889]
[1768276183650,0.00481317,3115.6,3115.1,1.10050889]
[1768276189452,0.00481317,3115.6,3114.5,0.00363554]
[1768276189643,0.00481317,3115.6,3114.9,1.10050889]
[1768276201055,0.00481317,3115.6,3115.3,1.10050889]
[1768276202043,0.00481317,3115.6,3115.2,1.10050889]
[1768276207556,3.53816161,3116.3,3115.4,1.10050889]
[1768276207761,0.84618647,3116.2,3115.4,1.10050889]
[1768276208061,0.84618647,3116.1,3115.4,1.10050889]
[1768276208263,3.53816161,3116.3,3115.4,1.10050889]
[1768276208452,0.846137,3116.2,3115.4,1.10050889]
[1768276208654,0.846137,3116.1,3115.4,1.10050889]
[1768276208858,3.53816161,3116.3,3115.4,1.10050889]
[1768276209055,0.84613714,3116.2,3115.4,1.10050889]
[1768276209351,0.84613714,3116.1,3115.4,1.10050889]
[1768276209554,3.53816161,3116.3,3115.4,1.10050889]
[1768276209754,0.84609984,3116.2,3115.4,1.10050889]
[1768276210050,0.84609984,3116.1,3115.4,1.10050889]
[1768276210254,3.53816161,3116.3,3115.4,1.10050889]
[1768276210549,0.84606914,3116.2,3115.4,1.10050889]
[1768276210758,0.84606914,3116.1,3115.4,1.10050889]
[1768276211062,3.53816161,3116.3,3115.4,1.10050889]
[1768276211266,1.94657312,3116.2,3115.4,1.10050889]
[1768276211460,0.84606423,3116.1,3115.4,1.10050889]
[1768276211657,1.10050889,3116.2,3115.4,1.10050889]
[1768276211864,0.84604494,3116.1,3115.4,1.10050889]
[1768276212059,1.10050889,3116.2,3115.4,1.10050889]
[1768276212358,0.8460408,3116.1,3115.4,1.10050889]
[1768276212560,1.10050889,3116.2,3115.4,1.10050889]
[1768276212858,0.84602584,3116.1,3115.4,1.10050889]
[1768276213062,1.10050889,3116.2,3115.4,1.10050889]
[1768276213272,0.84601603,3116.1,3115.2,1.10050889]
[1768276213457,1.10050889,3116.0,3115.1,0.00481317]
[1768276218968,1.10050889,3115.6,3115.1,0.00481317]
[1768276219666,4.70119173,3115.6,3115.1,0.00481317]
[1768276220668,1.10050889,3115.6,3115.1,0.00481317]
[1768276222662,4.70119173,3115.6,3115.1,0.00481317]
[1768276224675,3.60068284,3115.6,3115.1,0.00481317]
[1768276225676,4.70119173,3115.6,3114.5,0.00363554]
[1768276225879,4.70119173,3115.6,3114.7,1.10050889]
[1768276226174,4.70119173,3115.6,3114.9,1.10050889]
[1768276226374,4.70119173,3115.6,3114.7,1.10050889]
[1768276227774,3.60068284,3115.6,3114.7,1.10050889]
[1768276228284,3.60068284,3115.6,3114.9,1.10050889]
[1768276229370,3.60068284,3115.6,3114.6,1.1008206]
[1768276238183,3.51443826,3115.5,3114.5,0.00363554]
[1768276244183,4.61525886,3115.9,3114.7,1.1008206]
[1768276244481,0.8465084,3115.8,3114.7,1.1008206]
[1768276244786,0.8465084,3115.7,3114.7,1.1008206]
[1768276246580,0.8465084,3115.7,3114.5,0.00363554]
[1768276246781,0.8465084,3115.7,3114.5,1.10445614]
[1768276251690,4.36094666,3115.7,3114.5,0.00363554]
[1768276251878,3.51443826,3115.7,3114.5,1.10445614]
[1768276252393,3.51443826,3115.7,3114.5,0.00363554]
[1768276256197,4.36118342,3115.6,3114.5,0.00363554]
[1768276256387,3.51443826,3115.6,3114.5,0.00363554]
[1768276263404,4.61525886,3115.6,3114.5,0.00363554]
[1768276263599,3.51443826,3115.2,3114.5,0.00363554]
[1768276264701,3.51443826,3115.2,3113.9,1.1008206]
[1768276265296,3.38080077,3114.9,3113.7,2.87228972]
[1768276265500,3.38080077,3114.9,3113.7,0.00267635]
[1768276265701,0.00481317,3114.6,3113.7,0.00267635]
[1768276266613,3.38080077,3114.2,3113.7,0.00267635]
[1768276266815,3.38080077,3114.2,3113.0,2.4508206]
[1768276267111,3.38080077,3114.2,3113.0,1.1008206]
[1768276268011,3.38305186,3114.2,3113.0,1.10384867]
[1768276272709,3.38305186,3114.2,3113.0,0.00302807]
[1768276272916,3.38305186,3114.2,3113.0,1.10384867]
[1768276276619,3.38305186,3114.2,3113.0,0.00302807]
[1768276277421,3.46422641,3114.0,3113.0,0.00302807]
[1768276291330,4.56632931,3114.0,3113.1,1.1021029]
[1768276291530,3.46422641,3113.9,3113.1,1.1021029]
[1768276292130,1.1021029,3113.6,3113.0,0.00302807]
[1768276292431,1.1021029,3113.6,3112.9,1.1021029]
[1768276292731,1.1021029,3113.6,3112.7,1.1021029]
[1768276292918,1.1021029,3113.6,3112.9,1.1021029]
[1768276293122,4.56632931,3113.8,3112.9,1.1021029]
[1768276293324,4.56632931,3113.8,3112.9,1.10447213]
[1768276295232,3.47895444,3113.7,3112.9,1.10447213]
[1768276300131,4.58105734,3113.6,3112.9,0.00236923]
[1768276300537,4.58105734,3113.6,3112.7,1.1021029]
[1768276301640,4.58105734,3113.6,3112.7,1.10441656]
[1768276302242,3.47895444,3113.5,3112.7,1.10441656]
[1768276302828,3.47895444,3113.5,3112.9,1.1021029]
[1768276306338,3.47895444,3113.5,3112.8,1.1021029]
[1768276311152,3.47895444,3114.1,3113.0,1.1021029]
[1768276311340,0.8477773,3114.0,3113.2,1.1021029]
[1768276311647,3.47895444,3114.1,3113.2,1.1021029]
[1768276311834,0.84775885,3114.0,3113.2,1.1021029]
[1768276312034,3.47895444,3114.1,3113.2,1.1021029]
[1768276312238,0.84773167,3114.0,3113.2,1.1021029]
[1768276312446,3.47895444,3114.1,3113.2,1.1021029]
[1768276312746,0.84775857,3114.0,3113.2,1.1021029]
[1768276312947,3.47895444,3114.1,3113.2,1.1021029]
[1768276313141,0.84775829,3114.0,3113.2,1.1021029]
[1768276313343,3.47895444,3114.1,3113.2,1.1021029]
[1768276313640,0.8477893,3114.0,3113.2,1.1021029]
[1768276313842,3.47895444,3114.1,3113.2,1.1021029]
[1768276314049,0.84778911,3114.0,3113.2,1.1021029]
[1768276314240,3.47895444,3114.1,3113.2,1.1021029]
[1768276314442,0.84782171,3114.0,3113.2,1.1021029]
[1768276314647,3.47895444,3114.1,3113.2,1.1021029]
[1768276314940,0.84782173,3114.0,3113.2,1.1021029]
[1768276315138,3.47895444,3114.1,3113.2,1.1021029]
[1768276315334,3.47895444,3114.1,3113.4,1.1021029]
[1768276316449,4.58105734,3114.1,3113.0,1.1021029]
[1768276316652,0.84787831,3114.0,3113.0,1.1021029]
[1768276316953,3.47895444,3114.0,3113.0,1.1021029]
[1768276317846,3.47895444,3114.0,3112.7,0.00231366]
[1768276318048,3.47895444,3113.8,3112.9,1.1021029]
[1768276322066,3.47895444,3113.8,3113.1,1.1021029]
[1768276322255,3.47895444,3113.8,3112.9,1.1021029]
[1768276322457,0.00225109,3114.2,3112.9,1.1021029]
[1768276322666,4.32692728,3114.1,3113.4,1.1021029]
[1768276322863,3.47895444,3114.1,3113.4,1.1021029]
[1768276324662,0.00225109,3114.2,3113.6,1.1021029]
[1768276324957,3.43505667,3114.6,3114.0,1.1021029]
[1768276325165,3.43505667,3114.6,3113.8,1.1021029]
[1768276325963,3.43765039,3114.6,3114.0,1.1021029]
[1768276326562,3.43765039,3114.6,3113.6,1.1021029]
[1768276326761,3.4302435,3114.4,3113.5,1.1021029]
[1768276326956,3.4302435,3114.4,3113.3,1.1021029]
[1768276327158,1.1021029,3114.2,3112.9,2.87304357]
[1768276327461,1.1021029,3114.0,3113.1,1.1021029]
[1768276327860,1.1021029,3113.8,3112.8,1.1021029]
[1768276328060,4.5323464,3113.8,3112.8,1.1021029]
[1768276330267,4.5323464,3113.8,3113.0,1.1021029]
[1768276331157,3.4302435,3113.8,3113.0,1.1021029]
[1768276341162,0.00740689,3114.6,3113.6,1.1021029]
[1768276341468,0.00740689,3114.6,3114.0,1.1021029]
[1768276341771,0.00740689,3114.6,3114.4,1.1021029]
[1768276341977,3.57063949,3114.9,3113.4,1.1021029]
[1768276342176,3.57063949,3114.8,3114.1,1.1021029]
[1768276343073,3.57440017,3114.8,3114.1,1.1021029]
[1768276344678,4.67274239,3114.7,3114.0,0.00481317]
[1768276346076,3.57063949,3114.7,3114.0,0.00481317]
[1768276346378,4.67274239,3114.7,3114.0,0.00481317]
[1768276349179,1.1021029,3114.5,3114.0,0.00481317]
[1768276349382,1.1021029,3114.1,3113.2,1.1021029]
[1768276349681,3.57063949,3114.2,3113.0,4.38884357]
[1768276349682,3.57063949,3114.2,3113.4,1.1021029]
[1768276350883,1.1021029,3113.9,3113.0,1.1021029]
[1768276351181,1.1021029,3113.9,3113.1,1.1021029]
[1768276351382,1.1021029,3113.9,3112.7,0.00231366]
[1768276351383,3.57063949,3114.2,3112.8,1.10211273]
[1768276351584,3.57063949,3114.2,3113.0,1.10211273]
[1768276353582,3.57063949,3114.2,3113.3,1.10211273]
[1768276353884,3.57063949,3114.6,3113.3,1.10211273]
[1768276354086,4.41641208,3114.5,3113.3,1.10211273]
[1768276354282,3.57063949,3114.5,3113.3,1.10211273]
[1768276354479,4.25176132,3114.4,3113.3,1.10211273]
[1768276354680,3.40591822,3114.4,3113.3,1.10211273]
[1768276354984,3.40591822,3114.4,3113.1,1.10211273]
[1768276356685,3.40591822,3114.1,3112.7,1.10442639]
[1768276358893,3.40591822,3114.1,3113.0,1.10211273]
[1768276359394,3.40591822,3114.1,3112.8,1.10211273]
[1768276361279,3.40591822,3114.1,3113.0,1.10211273]
[1768276372487,3.40591822,3114.1,3112.8,1.10211273]
[1768276373788,3.40591822,3114.1,3113.1,1.10211273]
[1768276381599,0.84637963,3114.0,3113.1,1.10211273]
[1768276381800,3.40591822,3114.1,3113.1,1.10211273]
[1768276382002,0.84637978,3114.0,3113.1,1.10211273]
[1768276382197,3.40591822,3114.1,3113.1,1.10211273]
[1768276382501,0.84644576,3114.0,3112.9,1.10211273]
[1768276382698,3.40591822,3114.1,3112.9,1.10211273]
[1768276382902,4.25237221,3114.0,3112.9,1.10211273]
[1768276383198,3.40591822,3114.0,3112.9,1.10211273]
[1768276386207,3.40591822,3114.0,3113.3,1.10211273]
[1768276386504,3.34962363,3114.4,3113.3,1.10211273]
[1768276386804,3.34962363,3114.2,3113.3,1.10211273]
[1768276387003,0.84675149,3114.1,3113.3,1.10211273]
[1768276387905,0.84675149,3114.1,3113.1,1.10211273]
[1768276389007,4.19637512,3114.1,3113.1,1.10211273]
[1768276389207,3.34962363,3114.1,3113.1,1.10211273]
[1768276413331,3.34962363,3114.1,3113.4,1.10188803]
[1768276425132,4.45131207,3114.4,3113.4,1.10188803]
[1768276425333,4.19657446,3114.3,3113.4,1.10188803]
[1768276425535,4.19657446,3114.2,3113.4,1.10188803]
[1768276425733,0.84715042,3114.1,3113.4,1.10188803]
[1768276425934,3.34942404,3114.2,3113.4,1.10188803]
[1768276426136,0.84706232,3114.1,3113.4,1.10188803]
[1768276426329,3.34942404,3114.2,3113.4,1.10188803]
[1768276426635,0.84702527,3114.1,3113.4,1.10188803]
[1768276426837,3.34942404,3114.2,3113.4,1.10188803]
[1768276427035,0.84702527,3114.1,3113.4,1.10188803]
[1768276427237,3.34942404,3114.2,3113.4,1.10188803]
[1768276427434,0.84702307,3114.1,3113.4,1.10188803]
[1768276427736,4.45131207,3114.2,3113.4,1.10188803]
[1768276427936,0.84699807,3114.1,3113.3,1.10188803]
[1768276428237,4.45131207,3114.2,3113.3,1.10188803]
[1768276428436,0.84699574,3114.1,3113.3,1.10188803]
[1768276428636,4.45131207,3114.2,3113.3,1.10188803]
[1768276428935,0.84697784,3114.1,3113.3,1.10188803]
[1768276429134,4.45131207,3114.2,3113.3,1.10188803]
[1768276429335,0.84697785,3114.1,3113.3,1.10188803]
[1768276429533,4.45131207,3114.2,3113.3,1.10188803]
[1768276429734,0.84656102,3114.1,3113.3,1.10188803]
[1768276429935,4.45131207,3114.2,3113.3,1.10188803]
[1768276430232,0.84656102,3114.1,3113.3,1.10188803]
[1768276430435,4.45131207,3114.2,3113.3,1.10188803]
[1768276430636,4.45131207,3114.0,3113.2,1.10188803]
[1768276430937,3.34942404,3114.0,3113.2,1.10188803]
[1768276431138,3.34942404,3114.0,3113.4,1.10188803]
[1768276434936,3.34942404,3114.0,3113.2,1.10188803]
[1768276435332,0.16447068,3114.8,3113.8,1.10188803]
[1768276435541,7.27795237,3114.7,3113.8,1.10188803]
[1768276435730,0.84642623,3114.6,3113.8,1.10188803]
[1768276436029,0.84642623,3114.5,3113.8,1.10188803]
[1768276436229,0.84642623,3114.4,3113.8,1.10188803]
[1768276436432,3.34942404,3114.6,3113.8,1.10188803]
[1768276436629,0.84618437,3114.5,3112.9,6.46692373]
[1768276436830,0.84618437,3114.4,3113.6,1.10188803]
[1768276437026,3.34942404,3114.6,3113.8,1.10188803]
[1768276437332,0.84618179,3114.5,3114.0,1.10188803]
[1768276437535,3.34942404,3114.6,3113.8,1.10188803]
[1768276437741,0.84594922,3114.5,3113.8,1.10188803]
[1768276438037,3.34942404,3114.6,3113.8,1.10188803]
[1768276438238,0.84594959,3114.5,3113.8,1.10188803]
[1768276438544,3.34942404,3114.6,3113.8,1.10188803]
[1768276440533,3.34942404,3114.6,3113.4,1.10188803]
[1768276440838,5.29697289,3114.5,3113.2,4.95088016]
[1768276441143,4.45131207,3114.5,3113.6,1.10188803]
[1768276443242,3.34942404,3114.5,3113.8,1.10188803]
[1768276447548,4.45131207,3114.5,3113.7,1.10188803]
[1768276451149,3.34942404,3114.5,3113.7,1.10188803]
[1768276452446,3.34942404,3114.5,3113.4,1.10188803]
[1768276452748,3.34942404,3114.5,3113.7,1.10188803]
[1768276454750,0.00376068,3114.8,3113.9,1.10188803]
[1768276454957,0.00376068,3114.8,3114.3,1.10188803]
[1768276455253,0.00376068,3114.8,3114.5,1.10188803]
[1768276457861,4.46752369,3115.4,3114.5,1.10188803]
[1768276458055,0.8446079,3115.3,3114.5,1.10188803]
[1768276458252,4.46752369,3115.4,3114.5,1.10188803]
[1768276458454,0.84444752,3115.3,3114.5,1.10188803]
[1768276458749,4.46752369,3115.4,3114.5,1.10188803]
[1768276459054,0.84446667,3115.3,3114.5,1.10188803]
[1768276459256,4.47051627,3115.4,3114.5,1.10188803]
[1768276459454,0.84435571,3115.3,3114.5,1.10188803]
[1768276459655,4.47051627,3115.4,3114.5,1.10188803]
[1768276459854,0.84412836,3115.3,3114.5,1.10188803]
[1768276460063,4.47051627,3115.4,3114.5,1.10188803]
[1768276464567,4.47051627,3115.4,3114.4,1.10188803]
[1768276473281,3.36862824,3115.4,3114.1,1.10116429]
[1768276473578,3.36563566,3115.3,3114.1,1.10116429]
[1768276478790,0.00299258,3115.4,3114.3,1.10116429]
[1768276479989,0.00299258,3115.4,3114.6,1.10116429]
[1768276497688,0.00299258,3115.4,3114.5,1.10116429]
[1768276501401,3.40907711,3116.7,3115.2,2.20232858]
[1768276501695,1.17895462,3116.6,3115.2,4.67233931]
[1768276501902,0.84514501,3116.5,3115.3,3.57117502]
[1768276502205,3.40907711,3117.1,3115.5,3.57117502]
[1768276502503,2.28502239,3117.0,3115.6,1.10116429]
[1768276502690,3.41303293,3117.1,3115.5,3.57507508]
[1768276502691,0.84782983,3116.9,3115.9,1.10116429]
[1768276502891,0.00395582,3117.1,3116.0,3.57117502]
[1768276503094,0.00395582,3117.1,3116.2,4.67233931]
[1768276503303,1.10116429,3117.7,3116.3,3.57117502]
[1768276503504,0.84637973,3117.6,3116.3,3.57117502]
[1768276503802,0.84637973,3117.5,3116.3,3.57117502]
[1768276503999,4.5102414,3117.8,3116.3,3.57117502]
[1768276504301,0.8454606,3117.7,3116.3,3.57117502]
[1768276504501,0.8454606,3117.6,3116.3,3.57117502]
[1768276504703,4.51414622,3117.8,3116.3,3.57117502]
[1768276504896,0.84541749,3117.7,3116.3,3.57117502]
[1768276505098,4.51414622,3117.8,3116.3,3.57117502]
[1768276505492,3.49958807,3117.7,3116.3,3.57117502]
[1768276505891,1.10116429,3117.5,3116.3,3.57117502]
[1768276506096,3.49958807,3117.4,3115.9,3.52338498]
[1768276506704,4.60075236,3117.4,3115.9,3.52338498]
[1768276509004,3.49958807,3117.4,3115.9,3.52338498]
[1768276509306,4.60075236,3117.4,3115.9,3.52338498]
[1768276509507,4.60075236,3117.4,3116.0,1.10116429]
[1768276511409,3.49958807,3117.4,3116.0,1.10116429]
[1768276511604,3.49958807,3117.4,3116.0,4.62454927]
[1768276511997,3.49958807,3117.1,3115.5,3.52728504]
[1768276512198,4.60075236,3116.8,3115.5,0.00390006]
[1768276512500,1.10116429,3116.5,3115.5,0.00390006]
[1768276512699,1.10116429,3116.2,3115.5,0.00390006]
[1768276512907,4.60075236,3116.2,3115.5,0.00390006]
[1768276513304,3.49958807,3116.2,3115.5,0.00390006]
[1768276513906,1.10116429,3116.4,3115.5,0.00390006]
[1768276523726,1.10116429,3116.5,3115.5,0.00390006]
[1768276526431,3.39380528,3116.6,3115.5,0.00390006]
[1768276533343,1.10038372,3116.4,3115.5,0.00390006]
[1768276538648,3.39380528,3116.6,3115.6,1.10038372]
[1768276538848,1.10038372,3116.5,3115.6,1.10038372]
[1768276539747,1.10038372,3116.5,3115.5,0.00390006]
[1768276539748,1.694,3116.9,3115.8,1.10038372]
[1768276540046,4.51242754,3117.2,3116.2,1.10038372]
[1768276540245,0.8401821,3117.1,3116.2,1.10038372]
[1768276540449,4.51242754,3117.2,3116.2,1.10038372]
[1768276540649,0.84017488,3117.1,3116.2,1.10038372]
[1768276540949,4.51242754,3117.0,3116.0,1.10038372]
[1768276546149,0.00390482,3117.8,3116.9,1.10038372]
[1768276546354,0.00390482,3117.8,3117.2,1.10038372]
[1768276546653,1.10428854,3117.8,3116.9,1.10038372]
[1768276554651,1.10428854,3117.8,3116.4,1.351]
[1768276554858,1.10428854,3117.8,3116.9,1.10038372]
[1768276556869,1.10038372,3117.6,3116.7,1.10038372]
[1768276557658,3.41594864,3117.8,3116.7,1.10038372]
[1768276557864,1.10038372,3117.6,3116.7,1.10038372]
[1768276558967,4.51633236,3117.8,3116.9,1.10038372]
[1768276561975,1.10428854,3117.8,3116.9,1.10038372]
[1768276565171,0.00390482,3117.8,3116.9,1.10038372]
[1768276569966,0.00390482,3117.8,3117.1,1.10038372]
[1768276571472,3.41204382,3118.3,3117.5,1.10038372]
[1768276571678,4.51242754,3118.3,3117.5,1.10038372]
[1768276572679,4.5146838,3118.3,3117.5,1.10038372]
[1768276573077,1.10263998,3118.3,3117.5,1.10038372]
[1768276576183,0.83645769,3118.2,3117.5,1.10038372]
[1768276576481,0.00225626,3118.3,3117.7,1.10038372]
[1768276576673,0.00225626,3118.3,3117.7,1.10404821]
[1768276576875,0.00225626,3118.3,3117.7,0.00366449]
[1768276588093,1.10038372,3117.9,3116.7,3.38753263]
[1768276588284,1.10038372,3117.7,3116.7,3.38753263]
[1768276588483,1.10038372,3117.5,3116.8,1.10038372]
[1768276588682,1.10038372,3117.7,3116.8,1.10038372]
[1768276589293,1.10038372,3117.7,3116.8,1.10450749]
[1768276589980,1.10038372,3117.7,3116.8,0.00412377]
[1768276590288,4.42201163,3118.1,3117.1,1.10038372]
[1768276590486,0.840826,3118.0,3117.1,1.10038372]
[1768276590790,1.10038372,3117.9,3117.1,1.10038372]
[1768276593394,3.32162791,3118.1,3116.8,1.10339939]
[1768276593690,0.8408792,3118.0,3116.8,1.10339939]
[1768276593893,3.32162791,3118.1,3116.8,1.10339939]
[1768276594093,0.8408789,3118.0,3116.8,1.10339939]
[1768276594297,3.32162791,3118.1,3116.8,1.10339939]
[1768276594593,0.84090121,3118.0,3116.8,1.10339939]
[1768276594794,3.32162791,3118.1,3116.8,1.10339939]
[1768276594987,0.84090131,3118.0,3116.8,1.10339939]
[1768276595188,3.32162791,3118.1,3116.8,1.10339939]
[1768276595387,0.84092125,3118.0,3116.8,1.10339939]
[1768276595592,3.32162791,3118.1,3116.8,1.10339939]
[1768276595793,0.84092125,3118.0,3116.8,1.10339939]
[1768276595990,3.32162791,3118.1,3116.8,1.10339939]
[1768276596190,0.84091984,3118.0,3116.8,1.10339939]
[1768276596397,3.32162791,3118.1,3116.8,1.10339939]
[1768276596694,0.84093981,3118.0,3116.8,1.10339939]
[1768276596998,3.32162791,3118.1,3116.8,1.10339939]
[1768276597194,0.84093976,3118.0,3116.8,1.10339939]
[1768276597395,3.32162791,3118.1,3116.8,1.10339939]
[1768276597597,0.84096015,3118.0,3116.8,1.10339939]
[1768276597893,3.32162791,3118.1,3116.8,1.10339939]
[1768276598093,0.84096015,3118.0,3116.8,1.10339939]
[1768276598293,3.32162791,3118.1,3116.8,1.10339939]
[1768276598491,0.84098089,3118.0,3116.8,1.10339939]
[1768276598796,3.32162791,3118.1,3116.8,1.10339939]
[1768276598996,0.84098089,3118.0,3116.8,1.10339939]
[1768276599289,3.32162791,3118.1,3116.8,1.10339939]
[1768276599486,0.84099877,3118.0,3116.8,1.10339939]
[1768276599685,3.32162791,3118.1,3116.8,1.10339939]
[1768276599894,0.84099999,3118.0,3116.8,1.10339939]
[1768276600194,3.32162791,3118.1,3116.8,1.10339939]
[1768276600394,0.84097711,3118.0,3116.8,1.10339939]
[1768276600594,3.32162791,3118.1,3116.8,1.10339939]
[1768276600795,0.84097781,3118.0,3116.8,1.10339939]
[1768276601096,3.32162791,3118.1,3116.8,1.10339939]
[1768276601297,0.84095481,3118.0,3116.8,1.10339939]
[1768276601493,3.32162791,3118.1,3116.8,1.10339939]
[1768276601788,0.8409541,3118.0,3116.8,1.10339939]
[1768276601994,3.32162791,3118.1,3116.8,1.10339939]
[1768276602191,0.8409534,3118.0,3116.8,1.10339939]
[1768276602499,3.32162791,3118.1,3116.8,1.10339939]
[1768276602692,0.84091681,3118.0,3116.8,1.10339939]
[1768276602882,3.32162791,3118.1,3116.8,1.10339939]
[1768276603082,0.84091682,3118.0,3116.8,1.10339939]
[1768276603298,3.32162791,3118.1,3116.8,1.10339939]
[1768276603495,5.44463031,3118.0,3116.8,0.00412377]
[1768276603699,3.50447123,3117.9,3116.8,0.00412377]
[1768276604003,1.09927562,3117.8,3116.8,0.00412377]
[1768276604294,3.50447123,3117.9,3116.8,0.00412377]
[1768276616107,0.84747448,3117.8,3116.8,0.00412377]
[1768276616305,3.50447123,3117.9,3116.8,0.00412377]
[1768276616495,0.84747447,3117.8,3116.8,0.00412377]
[1768276616802,3.50447123,3117.9,3116.8,0.00412377]
[1768276617000,0.85084371,3117.8,3116.8,1.10339939]
[1768276617199,3.50447123,3117.9,3116.8,1.10339939]
[1768276617395,0.85116977,3117.8,3116.8,1.10339939]
[1768276617596,3.50447123,3117.9,3116.8,1.10339939]
[1768276617797,0.85116978,3117.8,3116.8,1.10339939]
[1768276617999,3.50447123,3117.9,3116.8,1.10339939]
[1768276618199,0.85116978,3117.8,3116.8,1.10339939]
[1768276618496,0.85116978,3117.7,3116.8,1.10339939]
[1768276618790,3.50447123,3117.9,3116.8,1.10339939]
[1768276618995,0.85190053,3117.8,3116.8,1.10339939]
[1768276619191,0.85190053,3117.7,3116.8,1.10339939]
[1768276619403,3.50447123,3117.9,3116.8,1.10339939]
[1768276619596,0.85189887,3117.8,3116.8,1.10339939]
[1768276619796,0.85189887,3117.7,3116.8,1.10339939]
[1768276619992,3.50447123,3117.9,3116.8,1.10339939]
[1768276620295,0.85189898,3117.8,3116.8,1.10339939]
[1768276620489,0.85189898,3117.7,3116.8,1.10339939]
[1768276620694,3.50447123,3117.9,3116.8,1.10339939]
[1768276620890,0.8518978,3117.8,3116.8,1.10339939]
[1768276621205,0.85671097,3117.7,3116.8,1.10339939]
[1768276621407,0.00481317,3117.7,3116.8,1.10339939]
[1768276638216,0.00481317,3117.7,3116.8,0.00412377]
[1768276644629,0.00225626,3118.3,3117.6,2.19855124]
[1768276644819,3.42783183,3119.0,3117.9,1.09927562]
[1768276645120,1.18555712,3118.9,3117.9,1.09927562]
[1768276645320,0.8516394,3118.8,3117.6,4.48161144]
[1768276645522,3.42783183,3119.0,3117.6,4.48161144]
[1768276645711,0.85024787,3118.9,3117.6,4.48161144]
[1768276645916,0.85024787,3118.8,3117.6,4.48161144]
[1768276646217,0.00411547,3118.9,3117.6,4.48161144]
[1768276653333,1.09874341,3118.7,3117.8,1.09874341]
[1768276655936,1.10285888,3118.9,3118.0,1.09874341]
[1768276656933,0.00411547,3118.9,3118.2,1.09874341]
[1768276657522,0.00411547,3118.9,3118.0,1.09874341]